fUST/lending_fUST_20241110
["ID","MTS","AMOUNT","RATE_DAILY","PERIOD"]
[341754669,1731207038289,-134.97787665,0.00025,2]
[341754670,1731207038299,-607.63888889,0.00025098,2]
[341754671,1731207038311,-167.0,0.0002589,2]
[341754672,1731207038320,-170.6797496,0.00028176,2]
[341754673,1731207038329,-331.181324,0.00028865,2]
[341754674,1731207038339,-874.21132951,0.00029011,30]
[341754675,1731207038349,-3000.0,0.00029414,2]
[341754676,1731207038358,-199.031035,0.00029502,2]
[341754677,1731207038368,-400.0,0.00030134,2]
[341754678,1731207038378,-400.0,0.00030134,2]
[341754679,1731207038387,-502.8964963,0.00030135,2]
[341754680,1731207038397,-510.76513608,0.00030136,2]
[341754681,1731207038406,-295.95022173,0.00030137,2]
[341754682,1731207038415,-159.618,0.0003028,10]
[341754683,1731207038424,-199.031035,0.00030977,2]
[341754684,1731207038434,-550.66690331,0.00031,2]
[341754685,1731207038443,-95.28492028,0.00031,3]
[341754686,1731207038455,-304.77627063,0.00031,3]
[341754687,1731207038464,-5000.0,0.00031,7]
[341754688,1731207038474,-9059.04185695,0.00031376,2]
[341754689,1731207038483,-241.0,0.000315,2]
[341754690,1731207038493,-500.0,0.000315,3]
[341754691,1731207038502,-153.01,0.000315,31]
[341754692,1731207038511,-153.01,0.000315,31]
[341754693,1731207038521,-153.01,0.000315,31]
[341754694,1731207038530,-153.01,0.000315,31]
[341754695,1731207038539,-153.01,0.000315,31]
[341754696,1731207038548,-153.01,0.000315,31]
[341754697,1731207038559,-153.01,0.000315,31]
[341754698,1731207038569,-153.01,0.000315,31]
[341754699,1731207038578,-153.01,0.000315,31]
[341754700,1731207038587,-153.01,0.000315,31]
[341754701,1731207038596,-153.01,0.000315,31]
[341754702,1731207038605,-153.01,0.000315,31]
[341754703,1731207038615,-195.83535926,0.00031552,2]
[341754704,1731207038624,-195.83535926,0.00031558,2]
[341754705,1731207038633,-195.83535926,0.00031564,2]
[341754706,1731207038643,-195.83535926,0.0003157,2]
[341754707,1731207038652,-502.58354531,0.00031574,2]
[341754708,1731207038661,-507.73296959,0.00031574,2]
[341754709,1731207038670,-182.96393327,0.00031574,2]
[341754710,1731207038679,-525.47766185,0.00031574,2]
[341754711,1731207038689,-195.83535926,0.00031575,2]
[341754712,1731207038702,-195.83535926,0.00031581,2]
[341754713,1731207038712,-195.83535926,0.00031587,2]
[341754714,1731207038721,-500.0,0.0003159,2]
[341754715,1731207038730,-500.0,0.0003159,2]
[341754716,1731207038740,-2497.09,0.00031591,2]
[341754717,1731207038749,-213.60290331,0.00031591,2]
[341754718,1731207038758,-510.12611068,0.00031591,2]
[341754719,1731207038768,-1000.0,0.00031592,2]
[341754720,1731207038778,-195.83535926,0.00031593,2]
[341754721,1731207038787,-1405.52,0.00031598,2]
[341754722,1731207038796,-500.0,0.00031598,2]
[341754723,1731207038808,-500.0,0.00031598,2]
[341754724,1731207038817,-396.48881523,0.00031598,2]
[341754725,1731207038826,-2500.0,0.000316,3]
[341754726,1731207038835,-500.0,0.000316,36]
[341754727,1731207038844,-151.380626,0.000316,2]
[341754728,1731207038853,-560.42516566,0.000316,7]
[341754729,1731207038864,-520.51468211,0.00031652,2]
[341754730,1731207038873,-5083.37051602,0.00031652,32]
[341754731,1731207038883,-5000.0,0.00031652,32]
[341754732,1731207038892,-5000.0,0.00031652,34]
[341754733,1731207038901,-5000.0,0.00031652,36]
[341754734,1731207038910,-214.41475012,0.00031672,2]
[341754735,1731207038919,-500.0,0.00031673,5]
[341754736,1731207038929,-507.37268708,0.00031673,5]
[341754737,1731207038938,-501.33848333,0.00031673,5]
[341754738,1731207038947,-500.0,0.00031673,5]
[341754739,1731207038957,-500.0,0.00031673,5]
[341754740,1731207038966,-501.57030107,0.00031673,5]
[341754741,1731207038976,-500.0,0.00031673,2]
[341754742,1731207038985,-203.697,0.00031689,2]
[341754743,1731207038994,-1130.0,0.00031689,2]
[341754744,1731207039003,-529.0,0.00031689,2]
[341754745,1731207039012,-2393.0,0.00031689,2]
[341754747,1731207039022,-500.0,0.00031691,10]
[341754748,1731207039031,-500.0,0.00031691,14]
[341754749,1731207039040,-500.0,0.00031691,18]
[341754750,1731207039049,-500.72745053,0.00031691,22]
[341754751,1731207039062,-716.22,0.00031691,2]
[341754752,1731207039072,-3266.89,0.00031691,120]
[341754753,1731207039082,-409.22740496,0.00031692,2]
[341754754,1731207039092,-172.49178045,0.00031692,2]
[341754755,1731207039102,-366.45207757,0.00031692,2]
[341754756,1731207039111,-500.0,0.00031692,2]
[341754757,1731207039121,-500.0,0.00031692,2]
[341754758,1731207039131,-500.0,0.00031692,2]
[341754759,1731207039140,-500.0,0.00031692,2]
[341754760,1731207039149,-176.82532032,0.00031692,2]
[341754761,1731207039159,-500.0,0.00031692,2]
[341754762,1731207039168,-166.02942455,0.00031692,2]
[341754763,1731207039177,-500.0,0.00031692,2]
[341754764,1731207039186,-500.0,0.00031692,2]
[341754765,1731207039196,-500.0,0.00031692,2]
[341754766,1731207039205,-638.86983056,0.00031692,2]
[341754767,1731207039215,-500.0,0.00031692,2]
[341754769,1731207039224,-366.54823765,0.00031692,2]
[341754770,1731207039233,-500.0,0.00031692,2]
[341754771,1731207039242,-500.0,0.00031692,2]
[341754772,1731207039251,-500.0,0.00031692,2]
[341754773,1731207039261,-500.0,0.00031692,2]
[341754774,1731207039270,-500.0,0.00031692,2]
[341754775,1731207039279,-500.0,0.00031692,2]
[341754776,1731207039288,-2557.52854987,0.00031692,2]
[341754777,1731207039298,-152.56901,0.00031692,7]
[341754778,1731207039311,-151.0,0.00031692,7]
[341754779,1731207039320,-151.0,0.00031692,7]
[341754780,1731207039329,-177.241006,0.00031692,7]
[341754781,1731207039338,-151.0,0.00031692,7]
[341754782,1731207039348,-151.0,0.00031692,7]
[341754783,1731207039358,-151.0,0.00031692,7]
[341754784,1731207039368,-153.169852,0.00031692,7]
[341754785,1731207039377,-151.0,0.00031692,7]
[341754786,1731207039387,-151.0,0.00031692,7]
[341754787,1731207039396,-151.0,0.00031692,7]
[341754788,1731207039406,-153.422413,0.00031692,7]
[341754789,1731207039416,-153.601071,0.00031692,7]
[341754790,1731207039425,-170.33486,0.00031692,7]
[341754791,1731207039435,-151.0,0.00031692,7]
[341754792,1731207039444,-151.0,0.00031692,7]
[341754793,1731207039453,-151.0,0.00031692,7]
[341754794,1731207039462,-151.0,0.00031692,7]
[341754795,1731207039471,-257.645527,0.00031692,7]
[341754796,1731207039480,-167.767165,0.00031692,7]
[341754797,1731207039489,-546.400027,0.00031692,7]
[341754798,1731207039499,-546.400027,0.00031692,7]
[341754799,1731207039508,-546.400027,0.00031692,7]
[341754800,1731207039517,-546.400027,0.00031692,7]
[341754801,1731207039527,-546.400027,0.00031692,7]
[341754802,1731207039536,-546.400027,0.00031692,7]
[341754803,1731207039545,-546.400027,0.00031692,7]
[341754804,1731207039557,-546.400027,0.00031692,7]
[341754805,1731207039566,-546.400027,0.00031692,7]
[341754806,1731207039576,-546.400027,0.00031692,7]
[341754807,1731207039584,-546.400027,0.00031692,7]
[341754808,1731207039595,-546.400027,0.00031692,7]
[341754809,1731207039605,-546.400027,0.00031692,7]
[341754810,1731207039614,-546.400027,0.00031692,7]
[341754823,1731207039739,-546.400027,0.00031692,7]
[341754824,1731207039749,-546.400027,0.00031692,7]
[341754826,1731207039759,-546.400027,0.00031692,7]
[341754827,1731207039770,-546.400027,0.00031692,7]
[341754828,1731207039780,-546.400027,0.00031692,7]
[341754829,1731207039790,-546.400032,0.00031692,7]
[341754830,1731207039799,-151.0,0.00031692,7]
[341754832,1731207039813,-151.0,0.00031692,7]
[341754834,1731207039822,-168.582626,0.00031692,7]
[341754836,1731207039832,-153.083267,0.00031692,7]
[341754838,1731207039841,-151.0,0.00031692,7]
[341754840,1731207039850,-151.0,0.00031692,7]
[341754841,1731207039863,-151.0,0.00031692,7]
[341754842,1731207039872,-193.748941,0.00031692,7]
[341754843,1731207039882,-151.0,0.00031692,7]
[341754844,1731207039891,-151.0,0.00031692,7]
[341754845,1731207039901,-151.0,0.00031692,7]
[341754846,1731207039910,-151.0,0.00031692,7]
[341754847,1731207039919,-200.24109776,0.00031692,7]
[341754848,1731207039928,-2627.12143346,0.00031692,10]
[341754849,1731207039938,-151.0,0.00031692,7]
[341754850,1731207039947,-164.261892,0.00031692,7]
[341754851,1731207039956,-158.985627,0.00031692,7]
[341754852,1731207039965,-158.985627,0.00031692,7]
[341754853,1731207039974,-158.985627,0.00031692,7]
[341754854,1731207039983,-158.985627,0.00031692,7]
[341754855,1731207039993,-158.985627,0.00031692,7]
[341754856,1731207040002,-158.985627,0.00031692,7]
[341754857,1731207040012,-158.985627,0.00031692,7]
[341754858,1731207040021,-158.985627,0.00031692,7]
[341754859,1731207040031,-158.985627,0.00031692,7]
[341754860,1731207040040,-158.985627,0.00031692,7]
[341754861,1731207040049,-158.985627,0.00031692,7]
[341754863,1731207040062,-158.985627,0.00031692,7]
[341754865,1731207040071,-158.985627,0.00031692,7]
[341754866,1731207040081,-158.985627,0.00031692,7]
[341754867,1731207040090,-158.985627,0.00031692,7]
[341754868,1731207040100,-158.985627,0.00031692,7]
[341754869,1731207040108,-158.985627,0.00031692,7]
[341754870,1731207040118,-158.985627,0.00031692,7]
[341754871,1731207040127,-158.985627,0.00031692,7]
[341754872,1731207040137,-158.985626,0.00031692,7]
[341754873,1731207040145,-151.0,0.00031692,7]
[341754874,1731207040155,-154.847956,0.00031692,7]
[341754875,1731207040164,-151.0,0.00031692,7]
[341754876,1731207040173,-151.0,0.00031692,7]
[341754877,1731207040183,-151.0,0.00031692,7]
[341754878,1731207040192,-151.0,0.00031692,7]
[341754879,1731207040201,-151.0,0.00031692,7]
[341754880,1731207040210,-151.0,0.00031692,7]
[341754881,1731207040220,-231.48454,0.00031692,7]
[341754882,1731207040229,-153.28147,0.00031692,7]
[341754883,1731207040238,-151.611924,0.00031692,7]
[341754884,1731207040248,-151.0,0.00031692,7]
[341754885,1731207040257,-151.0,0.00031692,7]
[341754887,1731207040266,-151.0,0.00031692,7]
[341754888,1731207040276,-151.0,0.00031692,7]
[341754889,1731207040285,-151.0,0.00031692,7]
[341754890,1731207040296,-151.0,0.00031692,7]
[341754891,1731207040307,-151.0,0.00031692,7]
[341754892,1731207040315,-151.0,0.00031692,7]
[341754893,1731207040325,-166.070975,0.00031692,7]
[341754894,1731207040333,-151.0,0.00031692,7]
[341754895,1731207040343,-151.0,0.00031692,7]
[341754896,1731207040353,-151.0,0.00031692,7]
[341754897,1731207040362,-151.0,0.00031692,7]
[341754898,1731207040373,-151.0,0.00031692,7]
[341754899,1731207040382,-151.0,0.00031692,7]
[341754900,1731207040391,-151.0,0.00031692,7]
[341754901,1731207040401,-151.0,0.00031692,7]
[341754902,1731207040411,-151.0,0.00031692,7]
[341754903,1731207040420,-151.0,0.00031692,7]
[341754904,1731207040429,-151.0,0.00031692,7]
[341754905,1731207040439,-173.378786,0.00031692,7]
[341754906,1731207040448,-471.18795768,0.00031692,28]
[341754907,1731207040457,-151.0,0.00031692,7]
[341754908,1731207040467,-151.0,0.00031692,7]
[341754909,1731207040475,-151.0,0.00031692,7]
[341754910,1731207040484,-151.0,0.00031692,7]
[341754911,1731207040493,-151.0,0.00031692,7]
[341754912,1731207040502,-151.0,0.00031692,7]
[341754913,1731207040511,-151.0,0.00031692,7]
[341754914,1731207040521,-151.0,0.00031692,7]
[341754915,1731207040530,-151.0,0.00031692,7]
[341754916,1731207040539,-151.0,0.00031692,7]
[341754917,1731207040549,-207.109385,0.00031692,7]
[341754918,1731207040561,-155.246859,0.00031692,7]
[341754919,1731207040570,-152.883535,0.00031692,7]
[341754920,1731207040579,-151.0,0.00031692,7]
[341754921,1731207040587,-151.0,0.00031692,7]
[341754922,1731207040596,-151.0,0.00031692,7]
[341754923,1731207040604,-151.0,0.00031692,7]
[341754924,1731207040613,-174.028787,0.00031692,7]
[341754925,1731207040623,-151.0,0.00031692,7]
[341754926,1731207040632,-163.317588,0.00031692,7]
[341754927,1731207040641,-636.761893,0.00031692,7]
[341754928,1731207040650,-636.761893,0.00031692,7]
[341754929,1731207040659,-636.761893,0.00031692,7]
[341754930,1731207040668,-636.761893,0.00031692,7]
[341754931,1731207040676,-636.761893,0.00031692,7]
[341754932,1731207040685,-636.761893,0.00031692,7]
[341754933,1731207040698,-636.761893,0.00031692,7]
[341754934,1731207040707,-636.761893,0.00031692,7]
[341754935,1731207040716,-636.761893,0.00031692,7]
[341754936,1731207040725,-636.761893,0.00031692,7]
[341754937,1731207040735,-636.761893,0.00031692,7]
[341754938,1731207040744,-636.761893,0.00031692,7]
[341754939,1731207040753,-636.761893,0.00031692,7]
[341754940,1731207040762,-636.761893,0.00031692,7]
[341754941,1731207040773,-636.761893,0.00031692,7]
[341754942,1731207040782,-636.761893,0.00031692,7]
[341754943,1731207040790,-636.761893,0.00031692,7]
[341754944,1731207040799,-636.761893,0.00031692,7]
[341754945,1731207040815,-636.761893,0.00031692,7]
[341754946,1731207040824,-636.761901,0.00031692,7]
[341754947,1731207040833,-191.181097,0.00031692,7]
[341754948,1731207040843,-335.23287432,0.00031693,2]
[341754949,1731207040852,-384.10101113,0.00031693,2]
[341754950,1731207040861,-560.42516566,0.00031693,7]
[341754951,1731207040870,-560.42516566,0.00031693,7]
[341754952,1731207040879,-396130.91476072,0.00031693,10]
[341754967,1731207043221,-500.0,0.00030136,7]
[341754968,1731207043231,-500.0,0.00030136,2]
[341754969,1731207043240,-500.0,0.00031232,10]
[341754970,1731207043249,-500.0,0.00031598,2]
[341754971,1731207043259,-620.94478139,0.00031692,2]
[341754976,1731207251287,161.830744,0.00013973,2]
[341754977,1731207521138,4002.51,0.00031695,30]
[341754982,1731207599354,195000.0,0.0002084,2]
[341754983,1731207663068,607.63888889,0.00020844,2]
[341755008,1731208206620,162.558584,0.00013973,2]
[341755037,1731208238343,-607.63888889,0.0002136,2]
[341755038,1731208238353,-162.558584,0.00021661,2]
[341755039,1731208238363,-4257.0,0.00022333,2]
[341755040,1731208238372,-184.329,0.00022412,2]
[341755041,1731208238381,-4257.0,0.00024566,4]
[341755042,1731208238390,-300.0,0.00025988,2]
[341755043,1731208238399,-300.0,0.00025988,2]
[341755044,1731208238408,-2598.7,0.00026,2]
[341755045,1731208238418,-683.3201526,0.00026516,2]
[341755046,1731208238427,-165.590662,0.00026593,2]
[341755047,1731208238436,-6631.7801563,0.00026918,2]
[341755048,1731208238445,-4257.0,0.00027023,7]
[341755049,1731208238455,-420.0,0.00028125,2]
[341755050,1731208238464,-162.558584,0.00029349,2]
[341755051,1731208238472,-4257.0,0.00029725,14]
[341755052,1731208238481,-151.0,0.0003,120]
[341755053,1731208238491,-1649.04864306,0.0003,7]
[341755054,1731208238500,-444.24899257,0.00030012,2]
[341755055,1731208238509,-160.35482893,0.00030112,2]
[341755056,1731208238518,-154.09,0.00030126,3]
[341755057,1731208238528,-462.27,0.00030126,3]
[341755058,1731208238537,-829.55106419,0.00030136,7]
[341755059,1731208238546,-520.58746916,0.00030136,2]
[341755060,1731208238555,-463.16113618,0.00030136,2]
[341755061,1731208238564,-390.16506773,0.00030136,2]
[341755062,1731208238574,-500.0,0.00030136,2]
[341755063,1731208238583,-500.0,0.00030136,2]
[341755064,1731208238593,-515.47413805,0.00030136,2]
[341755065,1731208238602,-503.02742343,0.00030136,2]
[341755066,1731208238611,-504.84275737,0.00030136,2]
[341755067,1731208238620,-504.8287137,0.00030136,2]
[341755068,1731208238629,-503.39785584,0.00030136,2]
[341755069,1731208238639,-504.32678886,0.00030136,2]
[341755070,1731208238649,-500.0,0.00030136,2]
[341755071,1731208238658,-519.07634047,0.00030136,2]
[341755072,1731208238667,-2393.04,0.00030136,2]
[341755073,1731208238676,-500.0,0.00030136,2]
[341755074,1731208238686,-1525.34,0.00030136,2]
[341755075,1731208238695,-500.0,0.00030136,2]
[341755076,1731208238704,-500.0,0.00030136,2]
[341755077,1731208238714,-200.9707931,0.00030136,2]
[341755078,1731208238723,-514.59946843,0.00030136,2]
[341755079,1731208238732,-507.48972449,0.00030136,2]
[341755080,1731208238741,-528.63876282,0.00030136,2]
[341755081,1731208238751,-205.16476165,0.00030136,2]
[341755082,1731208238761,-504.11208855,0.00030136,2]
[341755083,1731208238770,-252.46178601,0.00030136,2]
[341755084,1731208238780,-518.03306445,0.00030136,2]
[341755085,1731208238789,-553.65282936,0.00030136,2]
[341755086,1731208238798,-266.87227253,0.00030136,2]
[341755087,1731208238808,-183.67558168,0.00030136,2]
[341755088,1731208238818,-500.0,0.00030136,2]
[341755089,1731208238827,-512.55782375,0.00030136,2]
[341755090,1731208238836,-214.41475012,0.00030136,2]
[341755091,1731208238846,-604.09,0.00030136,2]
[341755092,1731208238856,-340.6440872,0.00030136,2]
[341755093,1731208238865,-508.41219859,0.00030136,2]
[341755094,1731208238875,-500.0,0.00030136,2]
[341755095,1731208238884,-526.35693594,0.00030136,2]
[341755096,1731208238894,-512.34607731,0.00030136,2]
[341755097,1731208238903,-527.23401754,0.00030136,2]
[341755098,1731208238913,-500.0,0.00030136,2]
[341755099,1731208238922,-500.0,0.00030136,2]
[341755100,1731208238931,-509.6073562,0.00030136,2]
[341755101,1731208238941,-506.97958549,0.00030136,2]
[341755102,1731208238951,-513.57948226,0.00030136,2]
[341755103,1731208238960,-500.0,0.00030136,2]
[341755104,1731208238970,-1483.61,0.00030136,2]
[341755105,1731208238979,-524.71508733,0.00030136,2]
[341755106,1731208238989,-717.71,0.00030136,2]
[341755107,1731208238998,-168.01242235,0.00030136,2]
[341755108,1731208239008,-213.60290331,0.00030136,2]
[341755109,1731208239017,-835.24,0.00030136,2]
[341755110,1731208239026,-507.06141141,0.00030136,2]
[341755111,1731208239035,-500.0,0.00030136,2]
[341755112,1731208239045,-500.0,0.00030136,2]
[341755113,1731208239054,-500.0,0.00030136,2]
[341755114,1731208239064,-155.40537444,0.00030136,2]
[341755115,1731208239074,-500.0,0.00030136,2]
[341755116,1731208239083,-500.0,0.00030136,2]
[341755118,1731208239092,-511.50417898,0.00030136,2]
[341755120,1731208239102,-175.16580046,0.00030136,2]
[341755122,1731208239112,-508.46147774,0.00030136,2]
[341755123,1731208239123,-532.45683424,0.00030136,2]
[341755125,1731208239133,-595.38130303,0.00030136,2]
[341755127,1731208239142,-500.0,0.00030136,120]
[341755129,1731208239152,-248.37359609,0.00030137,2]
[341755131,1731208239163,-444.2489925,0.00030236,2]
[341755134,1731208239173,-500.0,0.00030322,2]
[341755136,1731208239182,-626.06933817,0.00030322,5]
[341755137,1731208239191,-263.74475922,0.00030378,5]
[341755139,1731208239202,-578.75598904,0.000304,5]
[341755141,1731208239211,-528.54124118,0.0003041,2]
[341755144,1731208239220,-2393.04,0.0003041,2]
[341755146,1731208239230,-500.0,0.0003041,2]
[341755147,1731208239239,-1525.34,0.0003041,2]
[341755150,1731208239249,-500.0,0.0003041,2]
[341755151,1731208239258,-583.80699375,0.0003041,2]
[341755153,1731208239267,-604.09,0.0003041,2]
[341755155,1731208239276,-604.53629877,0.0003041,2]
[341755157,1731208239285,-396.48881523,0.0003041,2]
[341755159,1731208239294,-505.51195747,0.0003041,2]
[341755161,1731208239304,-500.0,0.0003041,2]
[341755163,1731208239313,-1483.61,0.0003041,2]
[341755165,1731208239323,-717.71,0.0003041,2]
[341755167,1731208239332,-835.24,0.0003041,2]
[341755169,1731208239342,-500.0,0.0003041,2]
[341755171,1731208239351,-500.0,0.0003041,120]
[341755173,1731208239360,-224.0,0.00030438,2]
[341755175,1731208239370,-444.2489925,0.00030461,2]
[341755177,1731208239379,-2393.0,0.00030606,2]
[341755179,1731208239389,-182.951,0.00030606,2]
[341755181,1731208239399,-2393.04,0.00030684,2]
[341755183,1731208239409,-500.0,0.00030684,2]
[341755185,1731208239419,-1525.34,0.00030684,2]
[341755187,1731208239429,-516.09758622,0.00030684,2]
[341755189,1731208239438,-604.09,0.00030684,2]
[341755191,1731208239447,-500.0,0.00030684,2]
[341755193,1731208239457,-1483.61,0.00030684,2]
[341755195,1731208239466,-717.71,0.00030684,2]
[341755197,1731208239475,-835.24,0.00030684,2]
[341755199,1731208239485,-423.74399761,0.00030684,2]
[341755201,1731208239494,-444.2489925,0.00030685,2]
[341755203,1731208239503,-796.93,0.00030948,3]
[341755205,1731208239513,-1412.37,0.00030948,10]
[341755207,1731208239523,-1176.97,0.00030948,10]
[341755209,1731208239532,-980.81,0.00030948,10]
[341755211,1731208239541,-2393.04,0.00030958,2]
[341755213,1731208239551,-500.0,0.00030958,2]
[341755215,1731208239561,-1525.34,0.00030958,2]
[341755217,1731208239570,-604.09,0.00030958,2]
[341755219,1731208239580,-500.0,0.00030958,2]
[341755220,1731208239589,-1483.61,0.00030958,2]
[341755221,1731208239599,-717.71,0.00030958,2]
[341755222,1731208239609,-835.24,0.00030958,2]
[341755223,1731208239618,-2393.04,0.00031232,2]
[341755224,1731208239628,-500.0,0.00031232,2]
[341755225,1731208239637,-1525.34,0.00031232,2]
[341755226,1731208239647,-604.09,0.00031232,2]
[341755227,1731208239657,-500.0,0.00031232,2]
[341755228,1731208239667,-1483.61,0.00031232,2]
[341755230,1731208239677,-717.71,0.00031232,2]
[341755231,1731208239687,-835.24,0.00031232,2]
[341755232,1731208239696,-3408.66,0.00031373,120]
[341755233,1731208239706,-500.0,0.00031373,2]
[341755234,1731208239716,-500.0,0.00031373,2]
[341755235,1731208239726,-500.0,0.00031373,2]
[341755236,1731208239735,-500.0,0.00031373,2]
[341755237,1731208239745,-189.851,0.00031374,29]
[341755238,1731208239754,-521.40378998,0.00031374,2]
[341755239,1731208239764,-280.62238361,0.00031374,2]
[341755240,1731208239773,-533.16391366,0.00031374,2]
[341755241,1731208239782,-640.22304205,0.00031375,2]
[341755242,1731208239792,-500.0,0.00031375,2]
[341755243,1731208239801,-500.0,0.00031375,2]
[341755244,1731208239811,-500.0,0.00031375,2]
[341755245,1731208239820,-521.7943328,0.00031375,2]
[341755247,1731208239830,-308.18,0.00031496,3]
[341755250,1731208239839,-161.53720524,0.00031496,2]
[341755252,1731208239849,-153.01,0.000315,31]
[341755255,1731208239858,-153.01,0.000315,31]
[341755257,1731208239868,-153.01,0.000315,31]
[341755259,1731208239877,-153.01,0.000315,31]
[341755260,1731208239887,-153.01,0.000315,31]
[341755262,1731208239896,-153.01,0.000315,31]
[341755264,1731208239906,-153.01,0.000315,31]
[341755266,1731208239915,-153.01,0.000315,31]
[341755268,1731208239925,-153.01,0.000315,31]
[341755270,1731208239934,-153.01,0.000315,31]
[341755272,1731208239944,-153.01,0.000315,31]
[341755274,1731208239953,-2393.04,0.00031506,2]
[341755276,1731208239962,-500.0,0.00031506,2]
[341755278,1731208239972,-1525.34,0.00031506,2]
[341755280,1731208239981,-604.09,0.00031506,2]
[341755282,1731208239990,-1483.61,0.00031506,2]
[341755283,1731208239999,-717.71,0.00031506,2]
[341755284,1731208240010,-835.24,0.00031506,2]
[341755285,1731208240019,-1007.0444975,0.00031533,2]
[341755286,1731208240028,-161.53720524,0.00031539,2]
[341755287,1731208240037,-159.582,0.0003154,30]
[341755288,1731208240046,-508.76101918,0.00031574,2]
[341755289,1731208240056,-501.51035277,0.00031574,2]
[341755290,1731208240065,-500.68551972,0.00031574,2]
[341755291,1731208240074,-603.37780621,0.00031574,2]
[341755292,1731208240085,-518.29428407,0.00031574,2]
[341755293,1731208240108,-507.14610939,0.00031574,2]
[341755294,1731208240117,-500.0,0.00031574,2]
[341755295,1731208240130,-501.88231188,0.00031574,2]
[341755296,1731208240139,-507.93039765,0.00031574,2]
[341755297,1731208240148,-514.99350405,0.00031574,2]
[341755298,1731208240157,-506.73183209,0.00031574,2]
[341755299,1731208240168,-509.61172301,0.00031574,2]
[341755300,1731208240177,-502.48448002,0.00031574,2]
[341755301,1731208240186,-161.53720524,0.00031582,2]
[341755302,1731208240195,-1000.0,0.00031582,2]
[341755303,1731208240205,-15907.08891463,0.00031582,3]
[341755304,1731208240215,-500.0,0.00031589,2]
[341755305,1731208240223,-533.42849558,0.0003159,2]
[341755306,1731208240233,-508.44562461,0.0003159,2]
[341755307,1731208240242,-500.0,0.00031591,2]
[341755308,1731208240251,-385.77125871,0.00031591,2]
[341755309,1731208240260,-2500.0,0.00031591,3]
[341755310,1731208240269,-5083.37051602,0.00031596,32]
[341755311,1731208240279,-5000.0,0.00031596,30]
[341755312,1731208240289,-5000.0,0.00031596,34]
[341755313,1731208240298,-5000.0,0.00031596,34]
[341755314,1731208240308,-8222.195061,0.000316,2]
[341755315,1731208240317,-8222.19506097,0.000316,2]
[341755316,1731208240326,-8222.19506097,0.000316,2]
[341755317,1731208240335,-8222.19506097,0.000316,2]
[341755318,1731208240344,-2500.0,0.000316,3]
[341755319,1731208240354,-168.533917,0.000316,7]
[341755320,1731208240363,-157.508946,0.000316,16]
[341755321,1731208240372,-151.380626,0.000316,2]
[341755322,1731208240382,-2500.0,0.000316,3]
[341755323,1731208240391,-500.0,0.000316,36]
[341755324,1731208240401,-500.0,0.00031649,2]
[341755325,1731208240410,-500.0,0.00031649,2]
[341755326,1731208240420,-413.12335503,0.00031649,2]
[341755327,1731208240429,-500.0,0.00031671,2]
[341755328,1731208240438,-500.0,0.00031672,2]
[341755329,1731208240447,-633.25863205,0.00031672,2]
[341755330,1731208240457,-501.74497621,0.00031672,2]
[341755331,1731208240466,-391.19253996,0.00031672,2]
[341755332,1731208240475,-309.6431752,0.00031672,2]
[341755333,1731208240485,-500.0,0.00031672,2]
[341755334,1731208240494,-504.4235075,0.00031672,2]
[341755335,1731208240503,-501.33848333,0.00031673,5]
[341755336,1731208240512,-500.0,0.00031673,5]